fUSD/lending_fUSD_20260408
["ID","MTS","AMOUNT","RATE_DAILY","PERIOD"]
[420059574,1775640643057,-500.0,0.00013698,2]
[420059575,1775640643068,-500.0,0.00013698,2]
[420059576,1775640643079,-500.0,0.00013698,2]
[420059577,1775640643089,-500.0,0.00013698,2]
[420059578,1775640643099,-595.48595604,0.00013698,2]
[420059579,1775640643109,-500.0,0.00013698,2]
[420059580,1775640643119,-500.0,0.00013698,2]
[420059581,1775640643129,-500.0,0.00013698,2]
[420059582,1775640643140,-500.0,0.00013698,2]
[420059583,1775640643150,-500.0,0.00013698,2]
[420059584,1775640643160,-500.0,0.00013698,2]
[420059585,1775640643170,-500.0,0.00013698,2]
[420059586,1775640643180,-500.0,0.00013698,2]
[420059587,1775640643189,-500.0,0.00013698,2]
[420059588,1775640643199,-500.0,0.00013698,2]
[420059589,1775640643209,-500.0,0.00013698,2]
[420059590,1775640643220,-500.0,0.00013698,2]
[420059591,1775640643230,-500.0,0.00013698,2]
[420059592,1775640643240,-223.3967903,0.00013698,2]
[420059593,1775640643251,-500.03954585,0.00013698,2]
[420059594,1775640643261,-2138.0,0.00013699,2]
[420059595,1775640643271,-150.0,0.00013699,2]
[420059596,1775640643280,-150.0,0.00013699,2]
[420059597,1775640643291,-150.0,0.00013699,2]
[420059598,1775640643301,-150.0,0.00013699,2]
[420059599,1775640643312,-166.66,0.00013699,2]
[420059600,1775640643322,-2494.97,0.00013699,2]
[420059601,1775640643332,-3168.21,0.00013699,2]
[420059602,1775640643342,-476.15,0.00013699,2]
[420059603,1775640643352,-396.8,0.00013699,2]
[420059604,1775640643362,-330.66,0.00013699,2]
[420059605,1775640643372,-275.55,0.00013699,2]
[420059606,1775640643382,-229.63,0.00013699,2]
[420059607,1775640643392,-191.36,0.00013699,2]
[420059608,1775640643402,-159.46,0.00013699,2]
[420059609,1775640643412,-797.34,0.00013699,2]
[420059610,1775640643422,-1000.0,0.00013699,7]
[420059611,1775640643431,-153.97,0.00013699,2]
[420059612,1775640643441,-786.02,0.00013699,2]
[420059613,1775640643451,-4775.4,0.000137,2]
[420059614,1775640643461,-4775.4,0.000137,2]
[420059615,1775640643471,-4775.4,0.000137,2]
[420059616,1775640643481,-4775.4,0.000137,2]
[420059617,1775640643491,-4775.4,0.000137,2]
[420059618,1775640643501,-163.33,0.00013711,2]
[420059619,1775640643511,-186.0,0.00013723,3]
[420059620,1775640643521,-166.66,0.00013836,2]
[420059621,1775640643532,-18832.3985687,0.00013857,2]
[420059622,1775640643542,-41111.4330156,0.00013857,2]
[420059624,1775640643553,-2000.0,0.0001389,2]
[420059626,1775640643563,-160.0,0.0001392,2]
[420059628,1775640643573,-150.0,0.00013973,2]
[420059630,1775640643584,-150.0,0.00013973,2]
[420059632,1775640643594,-166.66,0.00013973,2]
[420059634,1775640643604,-786.02,0.00013973,2]
[420059635,1775640643615,-4733.74989347,0.00014006,2]
[420059636,1775640643626,-299.0,0.00014077,2]
[420059637,1775640643636,-221.7999,0.000141,2]
[420059638,1775640643646,-166.66,0.0001411,2]
[420059639,1775640643656,-500.0,0.0001411,2]
[420059640,1775640643666,-5466.42449105,0.00014151,2]
[420059641,1775640643676,-506.0,0.00014162,2]
[420059642,1775640643687,-166.66,0.00014247,2]
[420059643,1775640643697,-150.0,0.00014247,2]
[420059644,1775640643707,-150.0,0.00014247,2]
[420059645,1775640643717,-786.02,0.00014247,2]
[420059646,1775640643727,-238.84,0.00014274,2]
[420059647,1775640643737,-183.84,0.00014353,2]
[420059648,1775640643748,-166.66,0.00014384,2]
[420059649,1775640643757,-3168.21,0.00014384,2]
[420059650,1775640643767,-1002.79521149,0.00014384,2]
[420059651,1775640643777,-1131.62560497,0.00014384,2]
[420059652,1775640643787,-1071.81644913,0.00014384,2]
[420059653,1775640643797,-1014.82492242,0.00014384,2]
[420059654,1775640643806,-1049.86544036,0.00014384,2]
[420059655,1775640643817,-1120.28196689,0.00014384,2]
[420059656,1775640643827,-150.0,0.000144,2]
[420059657,1775640643838,-150.11484194,0.000144,2]
[420059658,1775640643848,-150.0,0.000144,2]
[420059659,1775640643860,-150.0,0.000144,2]
[420059660,1775640643871,-150.0,0.000144,2]
[420059661,1775640643881,-150.12907206,0.000144,2]
[420059662,1775640643891,-150.0,0.000144,2]
[420059663,1775640643901,-150.0,0.000144,2]
[420059664,1775640643911,-150.0,0.000144,2]
[420059666,1775640643921,-150.0,0.000144,2]
[420059668,1775640643933,-150.0,0.000144,2]
[420059670,1775640643943,-150.0,0.000144,2]
[420059672,1775640643953,-150.0,0.000144,2]
[420059673,1775640643962,-150.0,0.000144,2]
[420059674,1775640643972,-150.13966067,0.000144,2]
[420059675,1775640643983,-150.0,0.00014422,2]
[420059676,1775640643992,-150.0,0.00014426,2]
[420059677,1775640644003,-150.0,0.00014431,2]
[420059678,1775640644013,-150.0,0.00014434,2]
[420059679,1775640644023,-150.0,0.00014439,2]
[420059680,1775640644033,-481.98,0.0001444,2]
[420059681,1775640644044,-150.0,0.0001444,2]
[420059682,1775640644055,-150.0,0.00014444,2]
[420059683,1775640644064,-1252.0,0.00014449,2]
[420059684,1775640644075,-4609.0,0.0001445,2]
[420059685,1775640644086,-150.0,0.00014452,2]
[420059686,1775640644097,-245.621453,0.00014458,7]
[420059687,1775640644107,-150.0,0.00014462,2]
[420059688,1775640644118,-150.0,0.00014466,2]
[420059689,1775640644128,-150.0,0.00014468,2]
[420059690,1775640644138,-150.0,0.00014473,2]
[420059691,1775640644148,-150.0,0.00014476,2]
[420059692,1775640644158,-150.0,0.00014477,2]
[420059693,1775640644168,-150.0,0.00014478,2]
[420059694,1775640644178,-150.0,0.0001448,2]
[420059695,1775640644188,-150.0,0.00014488,2]
[420059696,1775640644199,-150.0,0.00014492,2]
[420059697,1775640644209,-155.32006583,0.00014496,2]
[420059698,1775640644218,-150.0,0.00014502,2]
[420059699,1775640644228,-150.0,0.00014503,2]
[420059700,1775640644238,-150.0,0.0001451,2]
[420059701,1775640644248,-150.0,0.00014517,2]
[420059702,1775640644258,-150.0,0.0001452,2]
[420059703,1775640644268,-786.02,0.00014521,2]
[420059704,1775640644278,-150.0,0.00014523,2]
[420059705,1775640644289,-150.0,0.00014523,2]
[420059706,1775640644299,-150.0,0.00014529,2]
[420059707,1775640644308,-179.092875,0.00014531,2]
[420059708,1775640644318,-150.0,0.00014532,2]
[420059709,1775640644329,-150.0,0.00014536,2]
[420059710,1775640644628,-18832.3985687,0.00014537,2]
[420059711,1775640644677,-41111.4330156,0.00014537,2]
[420059712,1775640644687,-150.0,0.00014545,2]
[420059713,1775640644696,-150.0,0.00014552,2]
[420059714,1775640644706,-150.0,0.00014553,2]
[420059715,1775640644716,-150.0,0.00014554,2]
[420059716,1775640644725,-150.0,0.00014555,2]
[420059717,1775640644735,-150.0,0.00014556,2]
[420059718,1775640644745,-150.0,0.0001456,2]
[420059719,1775640644754,-150.0,0.0001457,2]
[420059720,1775640644763,-150.0,0.00014575,2]
[420059721,1775640644773,-150.0,0.00014581,2]
[420059722,1775640644782,-150.0,0.00014585,2]
[420059723,1775640644792,-150.0,0.00014595,2]
[420059724,1775640644801,-150.0,0.00014597,2]
[420059725,1775640644811,-150.0,0.000146,2]
[420059726,1775640644820,-150.0,0.00014604,2]
[420059727,1775640644829,-150.0,0.00014606,2]
[420059728,1775640644839,-150.0,0.00014615,2]
[420059729,1775640644848,-150.0,0.00014618,2]
[420059730,1775640644858,-150.0,0.00014619,2]
[420059731,1775640644867,-150.0,0.00014629,2]
[420059732,1775640644877,-150.0,0.00014632,2]
[420059733,1775640644887,-150.0,0.00014634,2]
[420059734,1775640644896,-150.0,0.00014638,2]
[420059735,1775640644906,-150.0,0.0001464,2]
[420059736,1775640644916,-150.0,0.00014641,2]
[420059737,1775640644925,-150.0,0.00014646,2]
[420059738,1775640644935,-150.0,0.00014646,2]
[420059739,1775640644944,-150.0,0.00014658,2]
[420059740,1775640644954,-150.0,0.00014663,2]
[420059741,1775640644964,-150.0,0.00014672,2]
[420059742,1775640644974,-150.0,0.00014673,2]
[420059743,1775640644984,-150.0,0.00014677,2]
[420059744,1775640644994,-150.0,0.0001468,2]
[420059745,1775640645004,-150.0,0.00014684,2]
[420059746,1775640645014,-150.0,0.00014685,2]
[420059747,1775640645023,-150.0,0.00014691,2]
[420059748,1775640645033,-150.0,0.00014705,2]
[420059749,1775640645043,-150.0,0.00014706,2]
[420059750,1775640645052,-150.0,0.00014707,2]
[420059751,1775640645062,-150.0,0.00014708,2]
[420059752,1775640645072,-150.0,0.0001471,2]
[420059753,1775640645082,-150.0,0.00014712,2]
[420059754,1775640645092,-150.0,0.0001472,2]
[420059755,1775640645102,-150.0,0.00014729,2]
[420059756,1775640645111,-150.0,0.00014735,2]
[420059757,1775640645121,-150.0,0.00014738,2]
[420059758,1775640645130,-150.0,0.0001474,2]
[420059759,1775640645140,-150.0,0.00014751,2]
[420059760,1775640645151,-150.0,0.00014751,2]
[420059761,1775640645160,-150.0,0.0001476,2]
[420059762,1775640645170,-150.0,0.00014761,2]
[420059763,1775640645179,-150.0,0.00014764,2]
[420059764,1775640645189,-150.0,0.00014769,2]
[420059765,1775640645199,-150.0,0.00014769,2]
[420059766,1775640645209,-150.0,0.00014773,2]
[420059767,1775640645219,-150.0,0.00014774,2]
[420059768,1775640645228,-150.0,0.00014781,2]
[420059769,1775640645238,-150.0,0.00014787,2]
[420059770,1775640645248,-150.0,0.0001479,2]
[420059771,1775640645257,-150.0,0.00014795,2]
[420059772,1775640645267,-250.0,0.00014795,2]
[420059773,1775640645277,-786.02,0.00014795,2]
[420059774,1775640645287,-150.0,0.000148,2]
[420059775,1775640645296,-150.0,0.000148,2]
[420059776,1775640645306,-150.0,0.000148,2]
[420059777,1775640645315,-150.0,0.00014809,2]
[420059778,1775640645325,-150.0,0.00014813,2]
[420059779,1775640645335,-150.0,0.00014816,2]
[420059780,1775640645345,-481.98,0.00014826,2]
[420059781,1775640645354,-150.0,0.00014829,2]
[420059782,1775640645364,-150.0,0.00014831,2]
[420059783,1775640645373,-150.0,0.00014836,2]
[420059784,1775640645383,-150.0,0.00014838,2]
[420059785,1775640645392,-150.0,0.00014839,2]
[420059786,1775640645403,-150.0,0.0001484,2]
[420059787,1775640645623,-150.0,0.00014843,2]
[420059788,1775640645632,-533.36132,0.00014851,2]
[420059789,1775640645644,-557.389729,0.00014851,7]
[420059790,1775640645653,-848.748538,0.00014851,2]
[420059791,1775640645663,-163.33,0.00014854,2]
[420059792,1775640645673,-150.0,0.00014857,2]
[420059793,1775640645682,-150.0,0.0001486,2]
[420059794,1775640645692,-150.0,0.00014862,2]
[420059795,1775640645701,-150.0,0.00014865,2]
[420059796,1775640645711,-150.0,0.00014868,2]
[420059797,1775640645720,-150.0,0.00014877,2]
[420059798,1775640645730,-150.0,0.0001488,2]
[420059799,1775640645740,-2000.0,0.0001488,2]
[420059800,1775640645749,-2000.0,0.0001488,2]
[420059801,1775640645758,-2000.0,0.0001488,2]
[420059802,1775640645768,-2000.0,0.0001488,2]
[420059803,1775640645778,-2000.0,0.0001488,2]
[420059804,1775640645787,-2000.0,0.0001488,2]
[420059805,1775640645798,-2000.0,0.0001488,2]
[420059806,1775640645807,-2000.0,0.0001488,2]
[420059807,1775640645816,-2000.0,0.0001488,2]
[420059808,1775640645825,-2000.0,0.0001488,2]
[420059809,1775640645835,-150.0,0.00014882,2]
[420059810,1775640645845,-150.0,0.0001489,2]
[420059811,1775640645854,-150.0,0.00014892,2]
[420059812,1775640645864,-150.0,0.00014892,2]
[420059813,1775640645874,-150.0,0.00014904,2]
[420059814,1775640645884,-150.0,0.00014907,2]
[420059815,1775640645895,-850.0,0.00014907,2]
[420059816,1775640645904,-850.0,0.00014907,2]
[420059817,1775640645915,-850.0,0.00014907,2]
[420059818,1775640645925,-850.0,0.00014907,2]
[420059819,1775640645935,-850.0,0.00014907,2]
[420059820,1775640645945,-850.0,0.00014907,2]
[420059821,1775640645955,-850.0,0.00014907,2]
[420059822,1775640645965,-850.0,0.00014907,2]
[420059823,1775640645975,-850.0,0.00014907,2]
[420059824,1775640645985,-641.0,0.00014907,2]
[420059825,1775640645995,-400.0,0.00014907,2]
[420059826,1775640646005,-400.0,0.00014907,2]
[420059827,1775640646014,-400.0,0.00014907,2]
[420059828,1775640646024,-400.0,0.00014907,2]
[420059829,1775640646034,-400.0,0.00014907,2]
[420059830,1775640646043,-400.0,0.00014907,2]
[420059831,1775640646052,-400.0,0.00014907,2]
[420059832,1775640646062,-400.0,0.00014907,2]
[420059833,1775640646072,-377.0,0.00014907,2]
[420059834,1775640646082,-150.0,0.00014909,2]
[420059835,1775640646092,-150.0,0.00014911,2]
[420059836,1775640646102,-150.0,0.00014916,2]
[420059837,1775640646111,-150.0,0.0001492,2]
[420059838,1775640646121,-150.0,0.00014923,2]
[420059839,1775640646130,-150.0,0.00014926,2]
[420059840,1775640646140,-500.0,0.00014932,2]
[420059841,1775640646150,-150.0,0.00014933,2]
[420059842,1775640646160,-150.0,0.00014942,2]
[420059843,1775640646170,-150.0,0.00014945,2]
[420059844,1775640646180,-150.0,0.00014946,2]
[420059845,1775640646190,-150.0,0.00014948,2]
[420059846,1775640646200,-150.0,0.00014954,2]
[420059847,1775640646210,-150.0,0.0001496,2]
[420059848,1775640646220,-150.0,0.00014968,2]
[420059849,1775640646229,-150.0,0.0001497,2]
[420059850,1775640646239,-150.0,0.00014979,2]
[420059851,1775640646249,-150.0,0.00014982,2]
[420059852,1775640646259,-150.0,0.00014985,2]
[420059853,1775640646268,-150.0,0.00014985,2]
[420059854,1775640646278,-150.0,0.00014992,2]
[420059855,1775640646288,-150.0,0.00014994,2]
[420059856,1775640646298,-160.0,0.00015,2]
[420059857,1775640646307,-150.0,0.00015,2]
[420059858,1775640646317,-150.0,0.0001501,2]
[420059859,1775640646327,-150.0,0.00015013,2]
[420059860,1775640646337,-150.0,0.00015014,2]
[420059861,1775640646346,-150.0,0.00015015,2]
[420059862,1775640646356,-150.0,0.00015015,2]
[420059863,1775640646366,-150.0,0.00015019,2]
[420059864,1775640646375,-150.0,0.00015024,2]
[420059865,1775640646385,-5466.42449105,0.00015026,2]
[420059866,1775640646395,-159.23,0.00015031,2]
[420059867,1775640646405,-150.0,0.00015036,2]
[420059868,1775640646416,-150.0,0.0001504,2]
[420059869,1775640646425,-150.0,0.00015045,2]
[420059870,1775640646435,-150.0,0.00015046,2]
[420059871,1775640646445,-150.0,0.00015047,2]
[420059872,1775640646454,-150.0,0.00015055,2]
[420059873,1775640646464,-150.0,0.00015058,2]
[420059874,1775640646474,-150.0,0.00015063,2]
[420059875,1775640646484,-524.53,0.00015068,2]
[420059876,1775640646494,-985.91,0.00015068,2]
[420059878,1775640646504,-3168.21,0.00015068,2]
[420059880,1775640646514,-152.1118183,0.0001507,2]
[420059881,1775640646524,-150.0,0.00015071,2]
[420059884,1775640646534,-888.71981631,0.00015076,2]
[420059886,1775640646544,-150.0,0.00015077,2]
[420059888,1775640646554,-159.23,0.00015077,2]
[420059889,1775640646564,-150.0,0.00015079,2]
[420059890,1775640646574,-150.0,0.0001508,2]
[420059891,1775640646584,-150.0,0.00015081,2]
[420059892,1775640646594,-150.0,0.00015086,2]
[420059893,1775640646604,-534.73708104,0.0001509,2]
[420059894,1775640646614,-6976.45084756,0.00015093,2]
[420059895,1775640646624,-150.0,0.00015097,2]
[420059896,1775640646635,-150.0,0.00015101,2]
[420059897,1775640646645,-150.0,0.00015102,2]
[420059898,1775640646655,-150.0,0.00015108,2]
[420059899,1775640646666,-150.0,0.00015115,2]
[420059900,1775640646675,-150.0,0.0001512,2]
[420059901,1775640646685,-150.0,0.00015123,2]
[420059902,1775640646695,-150.0,0.00015123,2]
[420059903,1775640646705,-150.0,0.00015127,2]
[420059904,1775640646714,-150.0,0.00015138,2]
[420059905,1775640646724,-150.0,0.00015138,2]
[420059906,1775640646733,-150.0,0.00015141,2]
[420059907,1775640646743,-150.0,0.00015145,2]
[420059908,1775640646754,-150.0,0.00015148,2]
[420059909,1775640646764,-150.0,0.00015149,2]
[420059910,1775640646774,-500.0,0.00015151,2]
[420059911,1775640646784,-2000.0,0.00015152,2]
[420059912,1775640646794,-150.0,0.0001516,2]
[420059913,1775640646804,-150.0,0.00015162,2]
[420059914,1775640646814,-150.0,0.00015167,2]
[420059915,1775640646824,-150.0,0.00015169,2]
[420059916,1775640646835,-150.0,0.00015174,2]
[420059917,1775640646846,-153.2,0.00015175,2]
[420059918,1775640646856,-150.0,0.0001518,2]
[420059919,1775640646866,-150.0,0.00015183,2]
[420059920,1775640646876,-150.0,0.00015189,2]
[420059921,1775640646887,-578.20924308,0.00015199,2]
[420059922,1775640646896,-200.0,0.00015199,2]
[420059923,1775640646907,-500.0,0.00015199,2]
[420059924,1775640646916,-181.08010149,0.00015199,2]
[420059925,1775640646927,-8260.13072239,0.00015199,2]
[420059926,1775640646936,-1235.18214925,0.00015199,2]
[420059927,1775640646946,-623.58710448,0.00015199,2]
[420059928,1775640646956,-151.0,0.00015199,2]
[420059929,1775640646965,-151.0,0.00015199,2]
[420059930,1775640646975,-158.44511549,0.00015199,2]
[420059931,1775640646985,-181.08010149,0.00015199,2]
[420059932,1775640646995,-1000.0,0.00015199,2]
[420059933,1775640647004,-160.62835242,0.00015199,2]
[420059934,1775640647015,-1000.0,0.00015199,2]
[420059935,1775640647025,-1000.0,0.00015199,2]
[420059936,1775640647035,-1000.0,0.00015199,2]
[420059937,1775640647045,-1000.0,0.00015199,2]
[420059938,1775640647055,-1000.0,0.00015199,2]
[420059939,1775640647064,-1000.0,0.00015199,2]
[420059940,1775640647074,-1000.0,0.00015199,2]
[420059941,1775640647084,-1000.0,0.00015199,2]
[420059942,1775640647094,-338.41058093,0.00015199,2]
[420059943,1775640647104,-174.61919141,0.00015199,2]
[420059944,1775640647114,-151.0,0.00015199,2]
[420059945,1775640647124,-599.60298507,0.00015199,2]
[420059946,1775640647134,-3000.0,0.00015199,2]
[420059947,1775640647144,-3000.0,0.00015199,2]
[420059948,1775640647154,-743.50770149,0.00015199,2]
[420059949,1775640647164,-3000.0,0.00015199,2]
[420059950,1775640647174,-3000.0,0.00015199,2]
[420059951,1775640647183,-2620.91593184,0.00015199,2]
[420059952,1775640647193,-181.08010149,0.00015199,2]
[420059953,1775640647204,-285.62441693,0.00015199,2]
[420059954,1775640647214,-170.0,0.00015199,2]
[420059955,1775640647223,-170.0,0.00015199,2]
[420059956,1775640647233,-170.0,0.00015199,2]
[420059957,1775640647243,-170.0,0.00015199,2]
[420059958,1775640647418,-170.0,0.00015199,2]
[420059959,1775640647428,-170.0,0.00015199,2]
[420059960,1775640647438,-170.0,0.00015199,2]
[420059961,1775640647447,-170.0,0.00015199,2]
[420059962,1775640647458,-170.0,0.00015199,2]
[420059963,1775640647467,-170.0,0.00015199,2]
[420059964,1775640647477,-170.0,0.00015199,2]
[420059965,1775640647487,-170.0,0.00015199,2]
[420059966,1775640647496,-170.0,0.00015199,2]
[420059967,1775640647505,-170.0,0.00015199,2]
[420059968,1775640647515,-170.0,0.00015199,2]
[420059969,1775640647524,-1500.0,0.00015199,2]
[420059970,1775640647533,-1532.75885711,0.00015199,2]
[420059971,1775640647543,-5113.74212955,0.000152,2]
[420059972,1775640647552,-5000.0,0.000152,2]
[420059973,1775640647561,-150.0,0.000152,2]
[420059974,1775640647571,-150.0,0.000152,2]
[420059975,1775640647581,-150.0,0.000152,2]
[420059976,1775640647590,-150.0,0.000152,2]
[420059977,1775640647599,-150.0,0.000152,2]
[420059978,1775640647609,-150.0,0.000152,2]
[420059979,1775640647619,-150.0,0.000152,2]
[420059980,1775640647628,-150.0,0.00015211,2]
[420059981,1775640647638,-18832.3985687,0.00015216,2]
[420059982,1775640647647,-41111.4330156,0.00015216,2]
[420059983,1775640647656,-150.0,0.00015217,2]
[420059984,1775640647666,-150.0,0.0001522,2]
[420059985,1775640647676,-506.0,0.00015224,3]
[420059986,1775640647686,-150.0,0.00015226,2]
[420059987,1775640647696,-150.0,0.00015231,2]
[420059988,1775640647706,-150.0,0.00015233,2]
[420059989,1775640647716,-150.0,0.00015238,2]
[420059990,1775640647727,-350.0,0.00015239,2]
[420059991,1775640647736,-150.0,0.0001524,2]
[420059992,1775640647745,-153.2,0.00015247,2]
[420059993,1775640647755,-150.0,0.00015251,2]
[420059994,1775640647764,-150.0,0.00015252,2]
[420059995,1775640647774,-500.0,0.00015254,2]
[420059996,1775640647784,-8565.75555911,0.00015254,2]
[420059997,1775640647794,-151.0,0.00015254,2]
[420059998,1775640647804,-150.0,0.00015255,2]
[420059999,1775640647813,-150.0,0.00015259,2]
[420060000,1775640647823,-150.0,0.00015262,2]
[420060001,1775640647834,-150.0,0.00015262,2]
[420060002,1775640647843,-150.0,0.00015273,2]
[420060003,1775640647852,-1000.0,0.00015274,7]
[420060004,1775640647863,-150.0,0.00015277,2]
[420060005,1775640647872,-150.0,0.00015277,2]
[420060006,1775640647882,-150.0,0.0001528,2]
[420060007,1775640647892,-150.0,0.00015285,2]
[420060008,1775640647902,-150.0,0.00015292,2]
[420060009,1775640647911,-150.0,0.00015298,2]
[420060010,1775640647921,-150.0,0.00015299,2]
[420060011,1775640647931,-150.0,0.00015303,2]
[420060012,1775640647940,-500.0,0.00015309,2]
[420060013,1775640647950,-2694.11375725,0.00015309,2]
[420060014,1775640647960,-151.0,0.00015309,2]
[420060015,1775640647970,-150.0,0.00015314,2]
[420060016,1775640647979,-150.0,0.00015319,2]
[420060017,1775640647988,-150.0,0.0001532,2]
[420060018,1775640647998,-150.0,0.00015321,2]
[420060019,1775640648008,-150.0,0.00015323,2]
[420060020,1775640648018,-150.0,0.00015329,2]
[420060021,1775640648028,-150.0,0.00015337,2]
[420060022,1775640648037,-987.75,0.00015342,2]
[420060023,1775640648047,-150.0,0.00015342,2]
[420060024,1775640648056,-150.0,0.00015345,2]
[420060025,1775640648066,-1000.0,0.00015352,2]
[420060026,1775640648075,-150.0,0.00015353,2]
[420060027,1775640648086,-150.0,0.00015354,2]
[420060028,1775640648095,-150.0,0.00015355,2]
[420060029,1775640648104,-1573.0,0.0001536,2]
[420060030,1775640648114,-150.0,0.0001536,2]
[420060031,1775640648123,-500.0,0.00015364,2]
[420060032,1775640648133,-151.0,0.00015364,2]
[420060033,1775640648142,-150.0,0.00015364,2]
[420060034,1775640648152,-150.0,0.00015376,2]
[420060035,1775640648161,-150.0,0.00015381,2]
[420060036,1775640648171,-150.0,0.00015385,2]
[420060037,1775640648181,-150.0,0.00015385,2]
[420060038,1775640648190,-150.0,0.00015386,2]
[420060039,1775640648200,-150.0,0.00015387,2]
[420060040,1775640648209,-150.0,0.0001539,2]
[420060041,1775640648219,-150.0,0.000154,2]
[420060042,1775640648229,-150.0,0.00015406,2]
[420060043,1775640648238,-150.0,0.00015408,2]
[420060044,1775640648248,-150.0,0.00015415,2]
[420060045,1775640648257,-150.0,0.00015415,2]
[420060046,1775640648267,-150.0,0.00015418,2]
[420060047,1775640648276,-500.0,0.00015419,2]
[420060048,1775640648286,-151.0,0.00015419,2]
[420060049,1775640648295,-150.0,0.00015421,2]
[420060050,1775640648304,-150.0,0.0001543,2]
[420060051,1775640648314,-150.0,0.00015432,2]
[420060052,1775640648323,-299.862857,0.00015438,7]
[420060053,1775640648333,-150.0,0.0001544,2]
[420060054,1775640648343,-150.0,0.00015446,2]
[420060055,1775640648352,-150.0,0.00015452,2]
[420060056,1775640648361,-150.0,0.00015454,2]
[420060057,1775640648371,-150.0,0.00015455,2]
[420060058,1775640648380,-150.0,0.00015458,2]
[420060059,1775640648389,-150.0,0.00015467,2]
[420060060,1775640648398,-150.0,0.00015474,2]
[420060061,1775640648407,-500.0,0.00015474,2]
[420060062,1775640648415,-151.0,0.00015474,2]
[420060063,1775640648425,-150.0,0.00015477,2]
[420060064,1775640648434,-150.0,0.0001548,2]
[420060065,1775640648443,-150.0,0.00015484,2]
[420060066,1775640648453,-150.0,0.00015489,2]
[420060067,1775640648462,-150.0,0.00015491,2]
[420060068,1775640648472,-150.0,0.00015493,2]
[420060069,1775640648481,-150.0,0.00015496,2]
[420060070,1775640648490,-252.6881,0.000155,2]
[420060071,1775640648500,-4000.0,0.00015507,2]
[420060072,1775640648509,-150.0,0.00015508,2]
[420060073,1775640648519,-150.0,0.00015508,2]
[420060074,1775640648528,-150.0,0.0001551,2]
[420060075,1775640648538,-150.0,0.00015518,2]
[420060076,1775640648547,-150.0,0.0001552,2]
[420060077,1775640648556,-150.0,0.00015523,2]
[420060078,1775640648566,-500.0,0.00015529,2]
[420060079,1775640648576,-151.0,0.00015529,2]
[420060080,1775640648587,-150.0,0.00015532,2]
[420060081,1775640648596,-150.0,0.00015535,2]
[420060082,1775640648606,-150.0,0.00015538,2]
[420060083,1775640648615,-150.0,0.0001554,2]
[420060084,1775640648625,-150.0,0.00015543,2]
[420060085,1775640648634,-150.0,0.00015557,2]
[420060086,1775640648643,-150.0,0.0001556,2]
[420060087,1775640648653,-150.0,0.00015561,2]
[420060088,1775640648663,-150.0,0.00015562,2]
[420060089,1775640648673,-150.0,0.00015564,2]